Cogmind - Beta 13 @@@ ROGUE MODE // 2024.06.09 @ 02:26:26 Player: SunnyVampire Result: Destroyed by P-60 Hacker with Shock Rifle Performance ------------- Evolutions (0) 0 Regions Visited (4) 800 Robots Destroyed (33) 165 Value Destroyed (795) 795 Prototype IDs (15) 300 Alien Tech Used (0) 0 Bonus (-10) -10 TOTAL SCORE: 2050 Bonus ------- Friendly Fire -10 Cogmind --------- Core Integrity 0/250 Matter 149/300 Energy 249/250 System Corruption 5% Temperature Cool (0) Movement Core (100) Ox1 Location -8/Recycling Parts ------- > --- POWER (1) -------- Ion Engine > --- PROPULSION (2) --- (None) > --- UTILITY (2) ------ Armored Scrap Engine > --- WEAPON (2) ------- (None) > --- INVENTORY (5) ---- Ion Engine Cryofiber Web Power Bank High-powered Shotgun Peak State ------------ > --- POWER ------------ Ion Engine > --- PROPULSION ------- Subdweller Monowheel Improved Flight Unit > --- UTILITY ---------- Scrap Engine > --- WEAPON ----------- High-powered Shotgun Rocket Launcher > --- INVENTORY -------- Ion Engine Cryofiber Web Power Bank [Rating: 28] Favorites ----------- Power Ion Engine Engine Ion Engine Power Core Light Nuclear Core Propulsion Improved Flight Unit Wheel Subdweller Monowheel Flight Unit Improved Flight Unit Utility Signal Interpreter Device Sensor Array Storage Small Storage Unit Processor Signal Interpreter Weapon Assault Rifle Ballistic Gun Assault Rifle Launcher Rocket Launcher Special Melee Weapon Datajack Build | -11 -10 -10 -10 -8 ------- Run | Yrd Mat Min Sub Rec Slots Evolved . | . . . . . Power . | . . . . . Propulsion . | . . . . . Utility . | . . . . . Weapon . | . . . . . Parts Attached 30 | 7 13 4 4 2 Power 8 | 2 4 1 . 1 Engine 7 | 2 3 1 . 1 Core 1 | . 1 . . . Reactor . | . . . . . Propulsion 7 | 2 3 1 1 . Treads . | . . . . . Leg . | . . . . . Wheel 4 | 2 1 . 1 . Hover . | . . . . . Flight 3 | . 2 1 . . Utility 5 | 1 2 . 1 1 Device 3 | . 1 . 1 1 Storage 1 | 1 . . . . Processor 1 | . 1 . . . Hackware . | . . . . . Protection . | . . . . . Artifact . | . . . . . Weapon 10 | 2 4 2 2 . Energy Gun . | . . . . . Energy Cannon . | . . . . . Ballistic Gun 4 | 2 . . 2 . Ballistic Cannon . | . . . . . Launcher 5 | . 3 2 . . Special Weapon . | . . . . . Impact Weapon . | . . . . . Slashing Weapon . | . . . . . Piercing Weapon . | . . . . . Special Melee Weapon 1 | . 1 . . . Unidentified Prototypes . | . . . . . Parts Lost 7 | . . 3 2 2 Power 1 | . . 1 . . Propulsion 3 | . . 1 1 1 Utility . | . . . . . Weapon 3 | . . 1 1 1 Highest Loss Streak 3 | . . 3 1 2 To Critical Strikes . | . . . . . Average Slot Usage (%) 90 | . 99 85 96 58 Engine 14 | . 14 14 14 14 Wheel 11 | . 15 . 12 13 Flight 14 | . 12 28 15 1 Device 13 | . 13 14 14 14 Storage 2 | . 7 . . . Processor 9 | . 6 14 14 . Ballistic Gun 10 | . 17 . 11 1 Launcher 12 | . 9 14 14 13 Naked Turns . | . . . . . Heaviest Build 14 | 13 14 10 13 13 Greatest Support 32 | 26 32 10 20 20 Greatest Overweight (x) 3 | . . . 1 3 Average Overweight (x) . | . . . . 2 Largest Inventory Capacity 8 | 8 8 5 5 5 Average Capacity 5 | 7 6 5 5 5 Most Carried 8 | 3 8 5 5 5 Average Carried 5 | 1 6 4 4 4 Final Capacity 8 | 8 5 5 5 5 Final Carried 5 | 3 5 5 4 4 Scrap Engine Consumption 9 | . . . . 9 Class Distribution -------------------- 100% | Mutant Dominant Class ---------------- Mutant | -10/Materials Mutant | -10/Mines Mutant | -10/Subcaves Mutant | -8/Recycling Resources | -11 -10 -10 -10 -8 ----------- Run | Yrd Mat Min Sub Rec Matter Collected 1067 | 188 505 238 136 . Remotely . | . . . . . Salvage Created 643 | . 435 175 33 . Parts 46 | . 31 7 8 . Haulers Intercepted 1 | . 1 . . . Recyclers Shooed 1 | . 1 . . . Parts Field Recycled . | . . . . . Retrieved Matter . | . . . . . Parts Self-Destructed 9 | . . . 9 . Prevented . | . . . . . Kills | -11 -10 -10 -10 -8 ------- Run | Yrd Mat Min Sub Rec Combat Hostiles Destroyed 19 | . 12 2 5 . Guns 3 | . 3 . . . AOE 16 | . 9 2 5 . Classes Destroyed 9 | . 5 1 3 . Worker 3 | . 2 1 . . Builder 3 | . 3 . . . Hauler 1 | . 1 . . . Recycler 2 | . . 2 . . Turret 2 | . . . 2 . Watcher 3 | . 3 . . . Swarmer 3 | . . . 3 . Grunt 14 | . 12 2 . . Subdweller 2 | . . . 2 . Best Kill Streak 5 | . 5 2 5 . Combat Bots Only 3 | . 3 1 3 . Max Kills in Single Turn 2 | . 2 1 2 . Gunslinging . | . . . . . Exploded 2 | . 1 1 2 . Melee . | . . . . . Uniques/NPCs Destroyed . | . . . . . Combat | -11 -10 -10 -10 -8 -------- Run | Yrd Mat Min Sub Rec Hostile Shots Fired 93 | . 24 9 34 26 Missed 33 | . 12 4 12 5 Damage Taken 864 | . 135 182 226 321 Core 251 | . 23 29 78 121 Absorbed by Shields . | . . . . . Regen/Repaired (Parts) 36 | . 36 . . . Core Remaining (%) 100 | 100 . . . . Volleys Fired 69 | . 36 13 20 . Largest 2 | . 2 1 2 . Hottest 53 | . 50 36 53 . Shots Fired 108 | . 66 13 29 . Gun 52 | . 43 . 9 . Cannon . | . . . . . Launcher 56 | . 23 13 20 . Special . | . . . . . Kinetic 52 | . 43 . 9 . Thermal . | . . . . . Explosive 56 | . 23 13 20 . Electromagnetic . | . . . . . Robot Hit Streak 9 | . 8 9 3 . Robot Miss Streak 5 | . 5 1 1 . Penetration Max . | . . . . . Secondary Targets . | . . . . . Shots Hit Robots 34 | . 24 7 3 . Core Hits 58 | . 33 8 17 . Critical Kills 1 | . 1 . . . Critical Parts Destroyed . | . . . . . Critical Strikes 1 | . 1 . . . Destroy 1 | . 1 . . . Melee Attacks 1 | . 1 . . . Impact . | . . . . . Slashing . | . . . . . Piercing . | . . . . . Sneak Attacks 1 | . 1 . . . Combat Hostiles . | . . . . . Follow-up Attacks . | . . . . . Damage Inflicted 2159 | . 1273 365 521 . Guns 266 | . 251 . 15 . Cannons . | . . . . . Explosions 1893 | . 1022 365 506 . Melee . | . . . . . Ramming . | . . . . . Kinetic 266 | . 251 . 15 . Thermal . | . . . . . Explosive 1893 | . 1022 365 506 . Electromagnetic . | . . . . . Impact . | . . . . . Slashing . | . . . . . Piercing . | . . . . . Highest Corruption 4 | . . . . 4 Average Corruption 2 | . . . . 2 Corruption Purged . | . . . . . Corruption Blocked . | . . . . . Overload Shots . | . . . . . Overflow Damage 28 | . 2 14 12 . Projectiles . | . . . . . Explosions 28 | . 2 14 12 . Melee . | . . . . . Knockbacks . | . . . . . Impact . | . . . . . Kinetic . | . . . . . Secondary . | . . . . . Self-Inflicted Damage 170 | . . 109 61 . Shots 6 | . . 4 2 . Rammed . | . . . . . Targets Rammed . | . . . . . Kicked . | . . . . . Crushed . | . . . . . Highest Temperature 12 | . 12 9 . . Average Temperature 6 | . 5 7 . . Received Heat Transfer 186 | . 75 45 66 . Siege Activations . | . . . . . Robots Corrupted . | . . . . . Combat Hostiles . | . . . . . Parts Fried . | . . . . . Impact Corruptions . | . . . . . Robots Melted . | . . . . . Combat Hostiles . | . . . . . Parts Melted . | . . . . . Heat Transferred . | . . . . . Parts Sabotaged . | . . . . . Parts Stolen . | . . . . . Parts Stripped . | . . . . . Power Chain Reactions . | . . . . . Alert | -11 -10 -10 -10 -8 ------- Run | Yrd Mat Min Sub Rec Peak Influence 278 | . 278 244 . 144 Initial 144 | . . 108 . 144 Average 121 | . 118 130 . 138 Maximum Alert Level 1 | . 1 1 . . Low Security (%) 81 | 100 78 73 . 100 Level 1 18 | . 21 26 . . Level 2 . | . . . . . Level 3 . | . . . . . Level 4 . | . . . . . Level 5 . | . . . . . High Security . | . . . . . Max Security . | . . . . . Squads Dispatched 5 | . 4 1 . . Investigation 5 | . 4 1 . . Extermination . | . . . . . Reinforcement . | . . . . . Assault . | . . . . . Garrison . | . . . . . Intercept . | . . . . . Searches Triggered . | . . . . . Construction Impeded . | . . . . . Haulers Reinforced . | . . . . . Active Scanning Responses . | . . . . . Cargo Convoy Interrupts . | . . . . . Stealth | -11 -10 -10 -10 -8 --------- Run | Yrd Mat Min Sub Rec Distress Signals . | . . . . . Communications Jammed . | . . . . . Distress Signals . | . . . . . Times Spotted 46 | . 15 2 27 2 Peak Tracking Total 6 | . 3 2 6 2 Tactical Retreats 2 | . 1 . 1 . Traps | -11 -10 -10 -10 -8 ------- Run | Yrd Mat Min Sub Rec Traps Triggered 1 | . 1 . . . Indirectly . | . . . . . Trap Hack Attempts . | . . . . . Triggered . | . . . . . Disarmed . | . . . . . Reprogrammed . | . . . . . Reused . | . . . . . Traps Extracted . | . . . . . Installed . | . . . . . Triggered 3 | . . . 3 . Machines | -11 -10 -10 -10 -8 ---------- Run | Yrd Mat Min Sub Rec Machines Disabled 11 | . 2 2 7 . Max in Single Turn 4 | . 1 2 4 . Machines Repaired . | . . . . . Machines Dismantled . | . . . . . Machines Sabotaged . | . . . . . Overloaded Fab Kills . | . . . . . Hacking | -11 -10 -10 -10 -8 --------- Run | Yrd Mat Min Sub Rec Machines Accessed 14 | . 7 1 1 5 Terminals 9 | . 5 . . 4 Fabricators . | . . . . . Repair Stations 1 | . 1 . . . Recycling Units 2 | . 1 . . 1 Scanalyzers . | . . . . . Garrison Access . | . . . . . Total Hacks 46 | . 21 1 9 15 Successful 27 | . 12 1 9 5 Failed 19 | . 9 . . 10 Catastrophic 9 | . 5 . . 4 Database Lockouts . | . . . . . Manual 21 | . 12 . . 9 Terminals 28 | . 16 . . 12 Fabricators . | . . . . . Repair Stations 2 | . 2 . . . Recycling Units 6 | . 3 . . 3 Scanalyzers . | . . . . . Garrison Access . | . . . . . Terminal Hacks 21 | . 8 1 9 3 Record 9 | . . . 8 1 Robot Analysis 2 | . 2 . . . Prototype ID Bank 3 | . 2 . . 1 Open Door 1 | . . 1 . . Branch Access Points 1 | . 1 . . . Locate Traps 1 | . 1 . . . Patrol Status 1 | . 1 . . . Hauler Manifests 2 | . 1 . . 1 Derelict Proto ID Bank 1 | . . . 1 . Fabricator Hacks . | . . . . . Repair Station Hacks 2 | . 2 . . . Scan Component 1 | . 1 . . . Repair 1 | . 1 . . . Recycling Unit Hacks 4 | . 2 . . 2 Report Inventory 2 | . 1 . . 1 Retrieve Components 2 | . 1 . . 1 Scanalyzer . | . . . . . Garrison Access Hacks . | . . . . . Unauthorized Hacks . | . . . . . Terminals . | . . . . . Fabricators . | . . . . . Repair Stations . | . . . . . Recycling Units . | . . . . . Scanalyzers . | . . . . . Garrison Access . | . . . . . Data Cores Recovered . | . . . . . Used . | . . . . . Hacking Detections 11 | . 6 . . 5 Full Trace Events 8 | . 5 . . 3 Feedback Events . | . . . . . Feedback Blocked . | . . . . . Robot Schematics Acquired . | . . . . . Robots Built . | . . . . . Authchips . | . . . . . Time . | . . . . . Total Robot Build Rating . | . . . . . Part Schematics Acquired . | . . . . . Parts Built . | . . . . . Authchips . | . . . . . Time . | . . . . . Total Part Build Rating . | . . . . . Parts Repaired 1 | . 1 . . . Time 26 | . 26 . . . Parts Recycled . | . . . . . Recycled Matter . | . . . . . Retrieved Matter . | . . . . . Retrieved Components 6 | . 3 . . 3 Parts Scanalyzed . | . . . . . Part Schematics Acquired . | . . . . . Parts Damaged . | . . . . . Bothacking | -11 -10 -10 -10 -8 ------------ Run | Yrd Mat Min Sub Rec Used RIF Installer . | . . . . . Robots Hacked 1 | . 1 . . . Non-combat 1 | . 1 . . . Combat . | . . . . . Robot Hacks Applied 1 | . 1 . . . no_distress 1 | . 1 . . . Relay Couplers Released . | . . . . . Fabnet Peak Effective % . | . . . . . Robots Rewired . | . . . . . Allies Hacked . | . . . . . Hacks Repelled . | . . . . . Allies | -11 -10 -10 -10 -8 -------- Run | Yrd Mat Min Sub Rec Total Allies . | . . . . . Largest Group . | . . . . . Highest-Rated Group . | . . . . . Highest-Rated Ally . | . . . . . Total Orders . | . . . . . Ally Attacks . | . . . . . Total Damage . | . . . . . Kills . | . . . . . Allies Corrupted . | . . . . . Allies Melted . | . . . . . Intel | -11 -10 -10 -10 -8 ------- Run | Yrd Mat Min Sub Rec Robot Analysis Total 2 | . 2 . . . Derelict Logs Recovered 3 | . . 2 1 . Drone Launches . | . . . . . Drone Recoveries . | . . . . . Exploration | -11 -10 -10 -10 -8 ------------- Run | Yrd Mat Min Sub Rec Turns Passed 3087 | 71 1169 596 837 414 Spaces Moved 3190 | 45 1165 1072 678 230 Core 197 | 3 . . . 194 Treads . | . . . . . Legs . | . . . . . Wheels 924 | 42 384 . 462 36 Hover . | . . . . . Flight 2069 | . 781 1072 216 . Fastest Speed 37 | 50 37 37 37 100 Average Speed 65 | 86 55 37 87 174 Slowest Speed 200 | 90 100 37 110 200 Overloaded Moves . | . . . . . Propulsion Burnouts . | . . . . . Robots Hopped 23 | . 5 17 1 . Cave-ins Triggered . | . . . . . Exploration Rate (%) 48 | 4 71 99 37 30 Regions Visited 4 Branch Regions 3 Pre-discovered Areas 1 | . . 1 . . Known Exits Taken 3 | . 1 1 1 . Unknown Exits Taken 1 | 1 . . . . Scrap Searched 2 | . . 1 1 . Spaces Dug . | . . . . . Terrain Destroyed 312 | . 103 91 118 . Melee . | . . . . . Projectile . | . . . . . AOE 312 | . 103 91 118 . Terrain Rammed . | . . . . . Walls Destroyed . | . . . . . Machines Disabled . | . . . . . Actions | -11 -10 -10 -10 -8 --------- Run | Yrd Mat Min Sub Rec Total 4070 | 73 1618 1243 890 246 Wait 752 | 19 379 160 189 5 Move 3141 | 44 1155 1037 675 230 Hop 22 | . 4 17 1 . Pick Up 27 | 3 16 6 1 1 Fast Attach 10 | 6 2 1 1 . Attach 7 | . 1 3 2 1 Detach 4 | . . 1 . 3 Swap 13 | 1 10 . 1 1 Drop 22 | . 14 5 . 3 Fire 69 | . 36 13 20 . Melee 1 | . 1 . . . Ram . | . . . . . Kick . | . . . . . Crush . | . . . . . Escape Stasis . | . . . . . Rewire 2 | . . . . 2 Trap . | . . . . . Miscellaneous . | . . . . . Route ------- -11/Scrapyard -10/Materials (discovered 4 exits: [*Mat] / *Min x2 / *Sub) -10/Mines (discovered 3 exits: [*Mat x2] / *Sub) -10/Subcaves -8/Recycling History --------- Turn | Location | Event 6 | -11/Scrapyard | Discovered new exit (range 16) 72 | -11/Scrapyard | Entered Materials 102 | -10/Materials | Identified exit to Mines 307 | -10/Materials | Build established: Mutant 785 | -10/Materials | Discovered new exit (range 8) 1148 | -10/Materials | Repaired Grenade Launcher 1185 | -10/Materials | Discovered new exit (range 8) 1241 | -10/Materials | Entered Mines 1248 | -10/Mines | Met a Derelict shopkeep closing up shop 1260 | -10/Mines | Met a Derelict bent on vengeance 1305 | -10/Mines | Discovered new exit (range 9) 1319 | -10/Mines | Found a hidden stash of uninstalled traps 1327 | -10/Mines | Learned location of Storage (-8) 1359 | -10/Mines | Received a Rocket Launcher from a helpful Derelict 1465 | -10/Mines | Lost 3 parts (1p1n1w) 1562 | -10/Mines | Identified exit to Subcaves 1705 | -10/Mines | Discovered new exit (range 7) 1837 | -10/Mines | Entered Subcaves 1842 | -10/Subcaves | Learned Materials trap positions 2239 | -10/Subcaves | Visited 4L-MR0's lab 2503 | -10/Subcaves | Found Power Bank 2634 | -10/Subcaves | Discovered new exit (range 15) 2641 | -10/Subcaves | Core integrity fell below 50% 2673 | -10/Subcaves | Identified exit to Recycling 2674 | -10/Subcaves | Entered Recycling 2679 | -8/Recycling | Found Scrap Engine 3068 | -8/Recycling | Core integrity fell below 20% 3088 | -8/Recycling | Destroyed by P-60 Hacker with Shock Rifle Last Messages --------------- 02771_ R-06 Scavenger inserts Sensor Array into recycling unit. 02814_ Connecting with Terminal... >>Query(Storage) Holding area for both raw materials and components based on old technology. 02824_ Connecting with Terminal... 02894_ Attempting to rewire R-06 Scavenger. 02894_ R-06 Scavenger is unpowered. 02903_ Attempting to rewire R-06 Scavenger. 02903_ R-06 Scavenger is unpowered. 02939_ Scrap Engine consumes Imp. Weapon Shielding. 02981_ Scrap Engine envelopes itself in armor. 03055_ P-60 Hacker springs to life. 03055_ I-25 Savior destroyed. 03061_ Rocket Launcher destroyed. 03064_ Recycling Unit disabled. 03064_ Axe tumbles out of recycling unit. 03064_ Broken Sub. Monowheel destroyed. Map ----- +----------------------------------------------------+ | ???# != #?????????????????????????? | | ???# ! = #?????????????????????????? | | ???# #?????????????????????????? | | ???###+##/######???????????????????????? | | ?????# +???????????????????????? | | ???### ######???????????????????????? | | ???#"" #????????????????????????????? | | ???#" #????????###+#######?????????? | | ???#""/ #??????? ??????????? | | ???### ##+######## #??????????????? | | ?????# # + #??????????????? | | ?????# # # #??????????????? | | ?????# # # +??????????????? | | ?????# + #? #??????????????? | | ?????# # #? #??????????????? | | ?????# # #?? #??????????????? | | ?????# + #?? #??????????????? | | ???### # #??? #??????????????? | | ???#"" ##+######## #??????????????? | | ???#"Y #??????????????? | | ???#"" ###?????? #??????????????? | | ???### #????????? ??????????????? | | ???### #????????? ##?????????????? | | ???# ##p##+#####+##???#??????????????? | | ???# # p #??????????????????? | | ???# # @ # ???????????????? | | ???### # # #??????????????? | | ?????# # # #??????????????? | | ?????# # # #??????????????? | | ?????# # + #??????????????? | | ?????# # # #??????????????? | | ?????# # # #??????????????? | | ?????# # # +??????????????? | | ?????# # # #??????????????? | | ?????# # # #??????????????? | | ?????# # # #??????????????? | | ?????# ###r########## #??????????????? | | ?????# #?##?????????# #??????????????? | | ???###+############## #??????????????? | | ???# + #??????????????? | | ???# ### #??????????????? | | ??## #?# #??????????????? | | ??# #?# #??????????????? | | ??## #?# #??????????????? | | ???# #?# #??????????????? | | ??# #?# ###????????????? | | ??#########+#######?# ""#????????????? | | ????????# ####### Y"#????????????? | | ????????# ""#????????????? | | ????????# ###????????????? | +----------------------------------------------------+ Best States ------------- Heat Dissipation 25 Energy Generation 10 Energy Capacity 250 Matter Stores 300 Matter Capacity 300 Sight Range 16 Robot Scan Range 15 Terrain Scan Density 10 Evasion (%) 62 Item Schematics ----------------- None Robot Schematics ------------------ None Fabricated ------------ Nothing Alien Tech Used ----------------- None Achievements -------------- None Challenges ------------ None Game ------ Seed PhasingEfficiencyInitializer Manual? 0 Play Time 00:54:56 Cumulative 6.8 hours Start 2024.06.02 @ 13:12:44 End 2024.06.09 @ 02:26:26 Sessions 3 Manual Loads 0 Difficulty Rogue Special Mode None Game No. 9 Rogue 9 Adventurer 0 Explorer 0 Win Type - Total 0 Types 0/0/0/0/0/0/0/0/0 Lore% 12 Gallery% 7 Achievement% 10 Wizard Run 0 Options --------- Layout 1 ASCII 0 Keyboard 1 Movement Numpad Keybinds 0 Fullscreen 1 Font 24/Smallcaps Map View 50x35 Zoom Use 0% Tactical HUD 1 Map Filters NONE Filters NONE Steam 1 RUN: 271f139f-03ab-4627-a8fa-fd5e8d6007e6